[Event "55th Rubinstein Memorial-B 2019"]
[Site "Polanica-Zdroj"]
[Date "2019.08.21"]
[Round "5.1"]
[White "Marszk, Kazimierz"]
[Black "Janocha, Wieslaw"]
[Result "1-0"]
[ECO "B20"]
[WhiteElo "1829"]
[BlackElo "2264"]
[Annotator "NA"]
[PlyCount "85"]
[EventDate "2019.08.17"]
[EventType "swiss"]
[EventCountry "POL"]
[SourceTitle "playchess.com"]
[Source "ChessBase"]
[SourceQuality "1"]
[TimeControl "40/5400+30:1800+30"]

1. e4 {[%emt 0:00:00]} c5 {[%emt 0:00:00]} 2. d3 {[%emt 0:00:00]} Nc6 {[%emt 0:00:00]} 3. g3 {[%emt 0:00:10]} g6 {[%emt 0:01:16]} 4. Bg2 {[%emt 0:00:13]} Bg7 5. f4 e6 {[%emt 0:02:00]} 6. Nf3 {[%emt 0:00:43]} Nge7 {[%emt 0:00:36]} 7. O-O {[%emt 0:00:36]} O-O {[%emt 0:02:25]} 8. c3 {[%emt 0:00:36]} Rb8 {[%emt 0:15:08]} 9. Be3 {[%emt 0:01:21]} b6 {[%emt 0:02:26]} 10. d4 {[%emt 0:03:34]} d6 {[%emt 0:03:04]} 11. Nbd2 {[%emt 0:02:48]} cxd4 {[%emt 0:06:47]} 12. cxd4 {[%emt 0:00:22]} d5 {[%emt 0:00:55]} 13. e5 {[%emt 0:03:44]} Ba6 {[%emt 0:02:59]} 14. Re1 {[%emt 0:00:28]} Na5 {[%emt 0:00:40]} 15. b3 {[%emt 0:08:35]} Qd7 {[%emt 0:03:20]} 16. Bf1 {[%emt 0:01:30]} Bxf1 {[%emt 0:01:30]} 17. Nxf1 {[%emt 0:00:23]} Rfc8 {[%emt 0:01:44]} 18. Rc1 {[%emt 0:05:24]} Nf5 {[%emt 0:08:18]} 19. Qd2 {[%emt 0:07:30]} Nc6 {[%emt 0:05:46]} 20. g4 {[%emt 0:03:57]} Nxe3 {[%emt 0:02:06]} 21. Nxe3 {[%emt 0:00:40]} f5 {[%emt 0:06:30]} 22. exf6 {[%emt 0:09:42]} Bxf6 {[%emt 0:00:08]} 23. g5 {[%emt 0:00:45]} Bg7 {[%emt 0:06:48]} 24. Ng4 {[%emt 0:00:46]} Qf7 {[%emt 0:03:26]} 25. Rxc6 {[%emt 0:05:48]} Rxc6 {[%emt 0:00:06]} 26. Nfe5 {[%emt 0:00:16]} Qc7 {[%emt 0:00:52]} 27. Nxc6 {[%emt 0:01:38]} Qxc6 {[%emt 0:00:02]} 28. Rc1 {[%emt 0:03:20]} Qd6 {[%emt 0:04:18]} 29. Kg2 {[%emt 0:02:40]} Rf8 {[%emt 0:02:59]} 30. Kg3 {[%emt 0:01:15]} Kh8 {[%emt 0:01:22]} 31. Qe3 {[%emt 0:04:47]} Kg8 {[%emt 0:03:50]} 32. Ne5 {[%emt 0:03:09]} Re8 {[%emt 0:03:02]} 33. Rc6 {[%emt 0:02:40]} Bxe5 {[%emt 0:00:06]} 34. Rxd6 {[%emt 0:00:48]} Bxd6 {[%emt 0:00:03]} 35. h4 {[%emt 0:00:49]} Kf7 {[%emt 0:06:21]} 36. h5 {[%emt 0:03:37]} Rf8 {[%emt 0:00:10]} 37. Qd3 {[%emt 0:01:17]} Ke7 {[%emt 0:03:05]} 38. hxg6 {[%emt 0:00:37]} Rxf4 {[%emt 0:00:26]} 39. Kh3 {[%emt 0:01:09]} hxg6 {[%emt 0:01:27]} 40. Qxg6 {[%emt 0:00:48]} Rf7 {[%emt 0:02:41]} 41. Qg8 {[%emt 0:01:52]} Rf8 {[%emt 0:00:52]} 42. Qh7+ {[%emt 0:00:08]} Rf7 {[%emt 0:01:55]} 43. g6 {[%emt 0:00:18]} 1-0

[Event "55th Rubinstein Memorial-B 2019"]
[Site "Polanica-Zdroj"]
[Date "2019.08.21"]
[Round "5.2"]
[White "Shilov, Sergej"]
[Black "Galyga, Jozef"]
[Result "1-0"]
[ECO "C10"]
[WhiteElo "2129"]
[BlackElo "1754"]
[Annotator "NA"]
[PlyCount "85"]
[EventDate "2019.08.17"]
[EventType "swiss"]
[EventCountry "POL"]
[SourceTitle "playchess.com"]
[Source "ChessBase"]
[SourceQuality "1"]
[TimeControl "40/5400+30:1800+30"]

1. e4 {[%emt 0:00:00]} e6 {[%emt 0:00:00]} 2. d4 {[%emt 0:00:00]} d5 {[%emt 0:00:00]} 3. Nc3 {[%emt 0:00:00]} dxe4 {[%emt 0:00:00]} 4. Nxe4 {[%emt 0:00:00]} Bd7 {[%emt 0:00:01]} 5. Nf3 {[%emt 0:00:55]} Bc6 {[%emt 0:00:07]} 6. Bd3 {[%emt 0:00:25]} Nf6 {[%emt 0:00:19]} 7. Nxf6+ {[%emt 0:03:05]} Qxf6 {[%emt 0:00:13]} 8. Bg5 {[%emt 0:01:38]} Bxf3 {[%emt 0:00:09]} 9. Qd2 {[%emt 0:00:01]} Bxg2 {[%emt 0:04:06]} 10. Bxf6 {[%emt 0:00:18]} Bxh1 {[%emt 0:00:12]} 11. Be5 {[%emt 0:00:23]} Nd7 {[%emt 0:12:12]} 12. Bxc7 {[%emt 0:01:29]} Rc8 {[%emt 0:01:16]} 13. Bf4 {[%emt 0:00:53]} Bd5 {[%emt 0:04:39]} 14. Qe2 {[%emt 0:03:17]} Bb4+ {[%emt 0:03:12]} 15. c3 {[%emt 0:02:07]} Be7 {[%emt 0:00:29]} 16. c4 {[%emt 0:01:11]} Bc6 {[%emt 0:02:23]} 17. d5 {[%emt 0:11:02]} exd5 {[%emt 0:01:25]} 18. Bd6 {[%emt 0:00:06]} O-O {[%emt 0:04:23]} 19. Bxe7 {[%emt 0:01:22]} Rfe8 {[%emt 0:00:29]} 20. cxd5 {[%emt 0:00:40]} Bxd5 {[%emt 0:07:55]} 21. Kd2 {[%emt 0:10:17]} Be6 {[%emt 0:07:30]} 22. Qh5 {[%emt 0:05:46]} g6 {[%emt 0:02:07]} 23. Qh4 {[%emt 0:00:07]} Ne5 {[%emt 0:03:22]} 24. Be2 {[%emt 0:00:33]} Bc4 {[%emt 0:10:24]} 25. f4 {[%emt 0:09:46]} Nc6 {[%emt 0:03:35]} 26. Bxc4 {[%emt 0:00:26]} Nxe7 {[%emt 0:00:20]} 27. Re1 {[%emt 0:07:03]} Red8+ {[%emt 0:00:30]} 28. Bd3 {[%emt 0:04:11]} Nf5 {[%emt 0:00:54]} 29. Qf2 {[%emt 0:00:52]} Rc6 {[%emt 0:02:32]} 30. Rd1 {[%emt 0:06:41]} a6 {[%emt 0:07:50]} 31. Ke2 {[%emt 0:03:33]} Re6+ {[%emt 0:02:00]} 32. Kf3 {[%emt 0:00:36]} Red6 {[%emt 0:05:09]} 33. Qf1 {[%emt 0:02:21]} h5 {[%emt 0:05:40]} 34. Be2 {[%emt 0:05:20]} Nd4+ {[%emt 0:00:55]} 35. Rxd4 {[%emt 0:00:16]} Rxd4 36. Qc1 {[%emt 0:00:26]} Rd2 {[%emt 0:01:12]} 37. Qc3 {[%emt 0:00:21]} R2d4 {[%emt 0:06:45]} 38. Ke3 {[%emt 0:01:01]} R4d6 {[%emt 0:00:27]} 39. Bc4 {[%emt 0:01:40]} Re8+ {[%emt 0:00:56]} 40. Kf3 {[%emt 0:00:00]} Rc6 {[%emt 0:00:00]} 41. Qb3 {[%emt 0:01:12]} Rc7 {[%emt 0:00:49]} 42. Qd3 {[%emt 0:00:50]} Rec8 {[%emt 0:03:12]} 43. Qxg6+ {[%emt 0:00:45]} 1-0

[Event "55th Rubinstein Memorial-B 2019"]
[Site "Polanica-Zdroj"]
[Date "2019.08.21"]
[Round "5.3"]
[White "Idesis, Yaacov"]
[Black "Marusenko, Petr"]
[Result "1/2-1/2"]
[ECO "A11"]
[WhiteElo "1856"]
[BlackElo "2124"]
[Annotator "NA"]
[PlyCount "61"]
[EventDate "2019.08.17"]
[EventType "swiss"]
[EventCountry "POL"]
[SourceTitle "playchess.com"]
[Source "ChessBase"]
[SourceQuality "1"]
[TimeControl "40/5400+30:1800+30"]

1. c4 c6 2. Nc3 d5 3. cxd5 cxd5 4. d4 Nf6 5. Nf3 Nc6 6. a3 e6 7. g3 Be7 8. Bg2 O-O 9. O-O b6 10. b4 Bb7 11. e3 Rc8 12. Bb2 Ne8 13. Rc1 Nd6 14. Nd2 f5 15. Qe2 g5 16. f4 g4 17. Rfd1 Qe8 18. Qf2 h5 19. Bf1 h4 20. Nb5 Qh5 21. Nxd6 Bxd6 22. Rc2 Rc7 23. Rdc1 hxg3 24. Qxg3 Rfc8 25. b5 Ne7 26. Rxc7 Rxc7 27. Rxc7 Bxc7 28. Nb3 Ng6 29. Nc1 Bd8 30. Nd3 Bh4 31. Qg2 1/2-1/2

[Event "55th Rubinstein Memorial-B 2019"]
[Site "Polanica-Zdroj"]
[Date "2019.08.21"]
[Round "5.4"]
[White "Klimaszewski, Dariusz"]
[Black "Wasylkiewicz, Andrzej"]
[Result "1-0"]
[ECO "B01"]
[WhiteElo "2152"]
[BlackElo "1752"]
[Annotator "NA"]
[PlyCount "61"]
[EventDate "2019.08.17"]
[EventType "swiss"]
[EventCountry "POL"]
[SourceTitle "playchess.com"]
[Source "ChessBase"]
[SourceQuality "1"]
[TimeControl "40/5400+30:1800+30"]

1. e4 {[%emt 0:00:00]} d5 {[%emt 0:00:14]} 2. exd5 {[%emt 0:00:17]} Nf6 {[%emt 0:00:02]} 3. d4 {[%emt 0:01:12]} Bg4 {[%emt 0:00:36]} 4. f3 {[%emt 0:01:51]} Bf5 {[%emt 0:00:29]} 5. Bb5+ {[%emt 0:00:41]} Nbd7 {[%emt 0:03:35]} 6. c4 {[%emt 0:00:37]} a6 {[%emt 0:00:33]} 7. Bxd7+ {[%emt 0:01:35]} Qxd7 {[%emt 0:01:17]} 8. Nc3 {[%emt 0:00:39]} O-O-O {[%emt 0:02:32]} 9. Nge2 {[%emt 0:00:55]} e6 {[%emt 0:04:13]} 10. O-O {[%emt 0:02:23]} exd5 {[%emt 0:00:24]} 11. c5 {[%emt 0:00:15]} h6 {[%emt 0:03:48]} 12. b4 {[%emt 0:00:28]} g5 {[%emt 0:01:39]} 13. a4 {[%emt 0:01:05]} c6 {[%emt 0:07:39]} 14. Be3 {[%emt 0:01:45]} Qe7 {[%emt 0:03:01]} 15. Bf2 {[%emt 0:00:15]} Bg7 {[%emt 0:08:37]} 16. b5 {[%emt 0:00:51]} Kd7 {[%emt 0:01:21]} 17. Ng3 {[%emt 0:01:16]} Be6 {[%emt 0:01:56]} 18. Re1 {[%emt 0:00:21]} Qf8 {[%emt 0:03:36]} 19. bxa6 {[%emt 0:00:26]} bxa6 {[%emt 0:00:47]} 20. Qd3 {[%emt 0:00:16]} Ra8 {[%emt 0:01:04]} 21. Rab1 {[%emt 0:03:28]} Qc8 {[%emt 0:01:39]} 22. a5 {[%emt 0:02:39]} Ne8 {[%emt 0:04:10]} 23. Na4 {[%emt 0:00:26]} Ke7 {[%emt 0:02:42]} 24. Nb6 {[%emt 0:00:37]} Qd8 {[%emt 0:00:36]} 25. Nxa8 {[%emt 0:02:04]} Qxa8 {[%emt 0:00:06]} 26. Rb6 {[%emt 0:00:07]} Nc7 {[%emt 0:00:21]} 27. Nf5+ {[%emt 0:00:31]} Kf8 {[%emt 0:00:44]} 28. Nxg7 {[%emt 0:00:57]} Kxg7 {[%emt 0:00:02]} 29. Bg3 {[%emt 0:00:15]} Rc8 {[%emt 0:01:23]} 30. Be5+ {[%emt 0:01:22]} Kg8 {[%emt 0:00:47]} 31. h4 1-0

[Event "55th Rubinstein Memorial-B 2019"]
[Site "Polanica-Zdroj"]
[Date "2019.08.21"]
[Round "5.5"]
[White "Kozlowski, Janusz"]
[Black "Kwiecien, Zbigniew"]
[Result "0-1"]
[ECO "C06"]
[WhiteElo "1781"]
[BlackElo "2024"]
[Annotator "NA"]
[PlyCount "74"]
[EventDate "2019.08.17"]
[EventType "swiss"]
[EventCountry "POL"]
[SourceTitle "playchess.com"]
[Source "ChessBase"]
[SourceQuality "1"]
[TimeControl "40/5400+30:1800+30"]

1. e4 {[%emt 0:00:00]} e6 {[%emt 0:00:26]} 2. d4 {[%emt 0:00:00]} d5 {[%emt 0:00:12]} 3. Nd2 {[%emt 0:00:09]} Nf6 {[%emt 0:00:45]} 4. e5 {[%emt 0:00:36]} Nfd7 {[%emt 0:00:13]} 5. Bd3 {[%emt 0:00:41]} c5 {[%emt 0:00:12]} 6. c3 {[%emt 0:00:21]} Nc6 {[%emt 0:00:15]} 7. Ne2 {[%emt 0:00:41]} cxd4 {[%emt 0:01:32]} 8. cxd4 {[%emt 0:00:13]} f6 {[%emt 0:00:56]} 9. f4 {[%emt 0:01:54]} fxe5 {[%emt 0:08:22]} 10. dxe5 {[%emt 0:01:39]} Bc5 {[%emt 0:00:53]} 11. Nb3 {[%emt 0:01:21]} Bb6 {[%emt 0:00:30]} 12. Nc3 {[%emt 0:01:06]} Qh4+ {[%emt 0:03:50]} 13. g3 {[%emt 0:00:27]} Qh3 {[%emt 0:00:12]} 14. Qf3 {[%emt 0:00:29]} O-O {[%emt 0:02:03]} 15. Qf1 {[%emt 0:07:15]} Qh5 {[%emt 0:06:08]} 16. Qe2 {[%emt 0:00:51]} Qh3 {[%emt 0:01:20]} 17. Qf1 {[%emt 0:01:03]} Qg4 {[%emt 0:08:07]} 18. Qe2 {[%emt 0:00:24]} Qxe2+ {[%emt 0:02:04]} 19. Kxe2 {[%emt 0:00:12]} Ndxe5 {[%emt 0:03:25]} 20. fxe5 {[%emt 0:00:33]} Rf2+ {[%emt 0:00:30]} 21. Kd1 {[%emt 0:01:10]} Nxe5 {[%emt 0:00:10]} 22. Be2 {[%emt 0:00:35]} Bd7 {[%emt 0:00:20]} 23. Bd2 {[%emt 0:01:09]} Bc6 {[%emt 0:02:23]} 24. Rf1 {[%emt 0:09:47]} Raf8 {[%emt 0:00:42]} 25. Rxf2 {[%emt 0:00:14]} Rxf2 {[%emt 0:00:02]} 26. h4 {[%emt 0:01:31]} d4 {[%emt 0:00:47]} 27. Bf4 {[%emt 0:03:08]} Ng6 {[%emt 0:03:11]} 28. Nb5 {[%emt 0:01:18]} Nxf4 {[%emt 0:02:10]} 29. gxf4 Rxf4 30. Bc4 {[%emt 0:03:06]} Rxh4 {[%emt 0:00:41]} 31. Bxe6+ {[%emt 0:00:11]} Kf8 {[%emt 0:00:03]} 32. Bc4 {[%emt 0:00:24]} a6 {[%emt 0:00:48]} 33. Nd6 {[%emt 0:01:15]} Rh2 {[%emt 0:00:15]} 34. Nf5 {[%emt 0:00:36]} Be4 {[%emt 0:02:20]} 35. Ng3 {[%emt 0:00:50]} Bc2+ {[%emt 0:01:43]} 36. Kc1 {[%emt 0:02:09]} d3 {[%emt 0:00:54]} 37. Nd2 {[%emt 0:00:53]} Be3 {[%emt 0:00:40]} 0-1

[Event "55th Rubinstein Memorial-B 2019"]
[Site "Polanica-Zdroj"]
[Date "2019.08.21"]
[Round "5.6"]
[White "Dembowski, Andrzej"]
[Black "Drazek, Wladyslaw"]
[Result "1/2-1/2"]
[ECO "A22"]
[WhiteElo "1840"]
[BlackElo "1864"]
[Annotator "NA"]
[PlyCount "70"]
[EventDate "2019.08.17"]
[EventType "swiss"]
[EventCountry "POL"]
[SourceTitle "playchess.com"]
[Source "ChessBase"]
[SourceQuality "1"]
[TimeControl "40/5400+30:1800+30"]

1. c4 e5 2. Nc3 Nf6 3. e4 Nc6 4. d3 Bc5 5. h3 d6 6. Nf3 h6 7. a3 O-O 8. Na4 Bd4 9. Nxd4 Nxd4 10. Nc3 a5 11. Be3 c5 12. a4 Bd7 13. Bxd4 cxd4 14. Nb5 Bxb5 15. axb5 Nd7 16. Be2 Nc5 17. b3 b6 18. O-O Qg5 19. g3 Ne6 20. Bg4 g6 21. Bxe6 fxe6 22. h4 Qe7 23. Qg4 Kg7 24. h5 Rf6 25. f4 exf4 26. gxf4 Kh7 27. Ra2 Qf7 28. Rg2 g5 29. f5 e5 30. Ra1 Qb7 31. Rga2 Rff8 32. Rf1 Qc8 33. Rfa1 Qc5 34. Ra4 Rac8 35. Kh2 Rf6 1/2-1/2

[Event "55th Rubinstein Memorial-B 2019"]
[Site "Polanica-Zdroj"]
[Date "2019.08.22"]
[Round "6.1"]
[White "Kwiecien, Zbigniew"]
[Black "Marszk, Kazimierz"]
[Result "1-0"]
[ECO "C70"]
[WhiteElo "2024"]
[BlackElo "1829"]
[Annotator "NA"]
[PlyCount "121"]
[EventDate "2019.08.17"]
[EventType "swiss"]
[EventCountry "POL"]
[SourceTitle "playchess.com"]
[Source "ChessBase"]
[SourceQuality "1"]
[TimeControl "40/5400+30:1800+30"]

1. e4 {[%emt 0:00:00]} e5 {[%emt 0:00:00]} 2. Nf3 {[%emt 0:00:00]} Nc6 {[%emt 0:00:00]} 3. Bb5 {[%emt 0:00:00]} a6 {[%emt 0:00:35]} 4. Ba4 {[%emt 0:00:05]} Be7 {[%emt 0:01:48]} 5. O-O {[%emt 0:00:28]} b5 {[%emt 0:00:18]} 6. Bb3 {[%emt 0:00:10]} Nf6 {[%emt 0:00:14]} 7. d3 {[%emt 0:01:28]} d6 {[%emt 0:01:19]} 8. h3 {[%emt 0:00:25]} O-O {[%emt 0:00:26]} 9. Nc3 {[%emt 0:04:38]} Bb7 10. a4 {[%emt 0:06:58]} b4 {[%emt 0:13:23]} 11. Ne2 {[%emt 0:00:11]} Qd7 {[%emt 0:03:35]} 12. Bg5 {[%emt 0:13:19]} h6 {[%emt 0:02:53]} 13. Bxf6 {[%emt 0:01:58]} Bxf6 {[%emt 0:00:11]} 14. g4 {[%emt 0:01:28]} Ne7 {[%emt 0:05:44]} 15. Ng3 {[%emt 0:03:41]} Ng6 {[%emt 0:00:23]} 16. Nh5 {[%emt 0:08:27]} Be7 {[%emt 0:03:22]} 17. Nh2 {[%emt 0:06:35]} Bg5 {[%emt 0:02:53]} 18. Nf3 {[%emt 0:09:48]} Nf4 {[%emt 0:03:18]} 19. Nxf4 {[%emt 0:02:27]} Bxf4 {[%emt 0:00:22]} 20. Nh4 {[%emt 0:00:58]} Qe7 {[%emt 0:09:14]} 21. Ng6 {[%emt 0:00:27]} Qg5 {[%emt 0:01:25]} 22. Nxf8 {[%emt 0:00:31]} Rxf8 {[%emt 0:00:20]} 23. Kg2 {[%emt 0:02:22]} h5 {[%emt 0:02:37]} 24. Rh1 {[%emt 0:04:55]} g6 {[%emt 0:07:20]} 25. f3 {[%emt 0:14:47]} h4 {[%emt 0:01:22]} 26. c3 {[%emt 0:00:32]} bxc3 {[%emt 0:00:45]} 27. bxc3 {[%emt 0:00:02]} Bd2 {[%emt 0:01:26]} 28. Ra2 {[%emt 0:01:25]} Bxc3 {[%emt 0:01:05]} 29. Qc1 {[%emt 0:00:02]} Qxc1 {[%emt 0:01:06]} 30. Rxc1 {[%emt 0:00:02]} Ba5 {[%emt 0:00:34]} 31. g5 {[%emt 0:00:44]} c5 {[%emt 0:01:18]} 32. Bc4 {[%emt 0:00:28]} Bb4 {[%emt 0:07:11]} 33. Rf1 {[%emt 0:01:27]} a5 {[%emt 0:04:26]} 34. f4 {[%emt 0:00:23]} exf4 {[%emt 0:05:31]} 35. Rxf4 {[%emt 0:00:17]} Be1 {[%emt 0:01:06]} 36. Rf6 {[%emt 0:00:23]} Bg3 {[%emt 0:01:58]} 37. Rxg6+ {[%emt 0:01:11]} Kh7 {[%emt 0:00:17]} 38. Rf6 {[%emt 0:00:17]} Kg7 {[%emt 0:00:29]} 39. Rf3 {[%emt 0:04:35]} Kg6 {[%emt 0:02:50]} 40. Rb2 {[%emt 0:00:00]} Bc8 {[%emt 0:00:00]} 41. Rb5 {[%emt 0:02:43]} Bd7 {[%emt 0:01:56]} 42. Rxa5 {[%emt 0:00:16]} Rb8 {[%emt 0:00:23]} 43. Bb5 {[%emt 0:01:36]} Be6 {[%emt 0:00:20]} 44. Rxg3 {[%emt 0:03:58]} hxg3 {[%emt 0:00:08]} 45. Kxg3 {[%emt 0:00:03]} Kxg5 {[%emt 0:00:16]} 46. h4+ {[%emt 0:00:29]} Kf6 {[%emt 0:00:15]} 47. Ra7 {[%emt 0:03:10]} Rg8+ {[%emt 0:00:48]} 48. Kf3 {[%emt 0:00:28]} Rh8 {[%emt 0:00:40]} 49. a5 {[%emt 0:00:15]} Rxh4 {[%emt 0:00:16]} 50. a6 {[%emt 0:00:14]} Rh3+ {[%emt 0:02:06]} 51. Kg2 {[%emt 0:00:22]} Re3 {[%emt 0:07:34]} 52. Kf2 {[%emt 0:00:56]} Rh3 {[%emt 0:00:09]} 53. Rc7 {[%emt 0:00:11]} Rh2+ {[%emt 0:02:26]} 54. Kg1 {[%emt 0:00:29]} Ra2 {[%emt 0:00:47]} 55. a7 {[%emt 0:00:22]} d5 {[%emt 0:01:35]} 56. Bc6 {[%emt 0:00:22]} c4 {[%emt 0:02:24]} 57. dxc4 {[%emt 0:01:28]} d4 {[%emt 0:03:05]} 58. a8=Q {[%emt 0:00:13]} Rxa8 {[%emt 0:00:24]} 59. Bxa8 {[%emt 0:00:02]} d3 {[%emt 0:00:11]} 60. Kf2 {[%emt 0:00:22]} Bg4 {[%emt 0:00:40]} 61. Ke3 1-0

[Event "55th Rubinstein Memorial-B 2019"]
[Site "Polanica-Zdroj"]
[Date "2019.08.22"]
[Round "6.2"]
[White "Janocha, Wieslaw"]
[Black "Klimaszewski, Dariusz"]
[Result "1/2-1/2"]
[ECO "B33"]
[WhiteElo "2264"]
[BlackElo "2152"]
[Annotator "NA"]
[PlyCount "98"]
[EventDate "2019.08.17"]
[EventType "swiss"]
[EventCountry "POL"]
[SourceTitle "playchess.com"]
[Source "ChessBase"]
[SourceQuality "1"]
[TimeControl "40/5400+30:1800+30"]

1. e4 {[%emt 0:12:09]} c5 {[%emt 0:00:00]} 2. Nf3 {[%emt 0:00:17]} Nc6 {[%emt 0:00:09]} 3. d4 {[%emt 0:00:19]} cxd4 {[%emt 0:00:22]} 4. Nxd4 {[%emt 0:00:16]} Nf6 {[%emt 0:00:08]} 5. Nc3 {[%emt 0:00:08]} e6 {[%emt 0:00:06]} 6. Nxc6 {[%emt 0:03:06]} bxc6 {[%emt 0:01:56]} 7. e5 {[%emt 0:00:08]} Nd5 {[%emt 0:00:17]} 8. Ne4 {[%emt 0:00:07]} Qc7 {[%emt 0:02:18]} 9. f4 {[%emt 0:00:08]} Qb6 {[%emt 0:00:07]} 10. c4 {[%emt 0:00:19]} Bb4+ {[%emt 0:00:32]} 11. Ke2 {[%emt 0:00:54]} Ba6 {[%emt 0:07:03]} 12. Kf3 {[%emt 0:00:09]} f5 {[%emt 0:00:12]} 13. Nf2 {[%emt 0:08:04]} Nc7 {[%emt 0:03:58]} 14. Be3 {[%emt 0:05:08]} Bc5 {[%emt 0:01:07]} 15. Bxc5 {[%emt 0:00:18]} Qxc5 {[%emt 0:00:08]} 16. Qd6 {[%emt 0:00:17]} Qb6 {[%emt 0:01:26]} 17. b3 {[%emt 0:00:44]} c5 {[%emt 0:00:51]} 18. Ke3 {[%emt 0:08:39]} Bb7 {[%emt 0:02:04]} 19. Rd1 {[%emt 0:03:30]} Qxd6 {[%emt 0:05:04]} 20. Rxd6 {[%emt 0:04:31]} Ke7 {[%emt 0:05:13]} 21. Nd3 {[%emt 0:00:23]} Na6 {[%emt 0:00:22]} 22. Be2 {[%emt 0:01:01]} Rac8 {[%emt 0:03:41]} 23. Bf3 {[%emt 0:04:20]} Bc6 {[%emt 0:02:09]} 24. Rg1 {[%emt 0:04:28]} h5 {[%emt 0:03:39]} 25. Rd1 {[%emt 0:02:04]} Bxf3 {[%emt 0:03:42]} 26. Kxf3 {[%emt 0:05:24]} Nb8 {[%emt 0:04:20]} 27. h4 {[%emt 0:06:49]} Rc7 {[%emt 0:00:30]} 28. Rd2 {[%emt 0:01:15]} Rhc8 {[%emt 0:00:23]} 29. Nb2 {[%emt 0:01:48]} Rc6 {[%emt 0:02:31]} 30. Na4 {[%emt 0:00:35]} R8c7 {[%emt 0:00:58]} 31. Ke2 {[%emt 0:01:22]} Ke8 {[%emt 0:06:41]} 32. R6d3 {[%emt 0:02:37]} Kf7 {[%emt 0:00:59]} 33. Nc3 {[%emt 0:00:24]} a6 {[%emt 0:02:07]} 34. Na4 {[%emt 0:04:48]} Ke8 {[%emt 0:02:42]} 35. Kd1 {[%emt 0:01:54]} g6 {[%emt 0:01:04]} 36. Kc2 {[%emt 0:00:44]} Kf7 {[%emt 0:03:01]} 37. Kc3 {[%emt 0:00:10]} Ke8 {[%emt 0:00:48]} 38. a3 {[%emt 0:02:01]} Rb7 {[%emt 0:02:41]} 39. Rd6 {[%emt 0:01:47]} Rcc7 {[%emt 0:04:40]} 40. R2d3 {[%emt 0:00:00]} Kf7 {[%emt 0:00:00]} 41. Rb6 {[%emt 0:05:34]} Rxb6 {[%emt 0:03:47]} 42. Nxb6 {[%emt 0:00:03]} Ke7 {[%emt 0:00:34]} 43. Na4 {[%emt 0:04:33]} Rc6 {[%emt 0:00:21]} 44. Rd2 {[%emt 0:00:24]} a5 {[%emt 0:00:46]} 45. Rd3 {[%emt 0:06:05]} Na6 {[%emt 0:00:43]} 46. Rg3 {[%emt 0:01:53]} Kf7 {[%emt 0:00:12]} 47. Rd3 {[%emt 0:02:52]} Ke7 {[%emt 0:00:10]} 48. Rg3 {[%emt 0:00:15]} Kf7 {[%emt 0:00:09]} 49. Rd3 {[%emt 0:01:19]} Ke7 1/2-1/2

[Event "55th Rubinstein Memorial-B 2019"]
[Site "Polanica-Zdroj"]
[Date "2019.08.22"]
[Round "6.3"]
[White "Marusenko, Petr"]
[Black "Shilov, Sergej"]
[Result "1/2-1/2"]
[ECO "B30"]
[WhiteElo "2124"]
[BlackElo "2129"]
[Annotator "NA"]
[PlyCount "74"]
[EventDate "2019.08.17"]
[EventType "swiss"]
[EventCountry "POL"]
[SourceTitle "playchess.com"]
[Source "ChessBase"]
[SourceQuality "1"]
[TimeControl "40/5400+30:1800+30"]

1. e4 c5 2. Nf3 Nc6 3. Bb5 Na5 4. c3 a6 5. Ba4 b5 6. Bc2 d5 7. e5 Bg4 8. h3 Bxf3 9. Qxf3 e6 10. O-O Nc6 11. Qe2 Qc7 12. f4 c4 13. d4 cxd3 14. Bxd3 Bc5+ 15. Be3 Bxe3+ 16. Qxe3 Nge7 17. a4 b4 18. Nd2 Qa7 19. Qxa7 Rxa7 20. Rac1 O-O 21. Nb3 bxc3 22. bxc3 Rc8 23. Rb1 g6 24. g4 g5 25. Rbe1 gxf4 26. Rxf4 Ng6 27. Bxg6 hxg6 28. c4 Nb4 29. Re3 Rxc4 30. Rf1 Nc2 31. Re2 Rb7 32. Na5 Nd4 33. Re3 Rb2 34. Nxc4 dxc4 35. Rf2 Rb1+ 36. Rf1 Rb2 37. Rf2 Rb1+ 1/2-1/2

[Event "55th Rubinstein Memorial-B 2019"]
[Site "Polanica-Zdroj"]
[Date "2019.08.22"]
[Round "6.4"]
[White "Fainberg, Boris"]
[Black "Idesis, Yaacov"]
[Result "1-0"]
[ECO "D45"]
[WhiteElo "2030"]
[BlackElo "1856"]
[Annotator "NA"]
[PlyCount "67"]
[EventDate "2019.08.17"]
[EventType "swiss"]
[EventCountry "POL"]
[SourceTitle "playchess.com"]
[Source "ChessBase"]
[SourceQuality "1"]
[TimeControl "40/5400+30:1800+30"]

1. c4 {[%emt 0:00:44]} c6 {[%emt 0:00:00]} 2. d4 {[%emt 0:00:32]} d5 {[%emt 0:00:00]} 3. Nc3 {[%emt 0:00:28]} Nf6 {[%emt 0:00:00]} 4. e3 {[%emt 0:00:47]} e6 {[%emt 0:00:21]} 5. Nf3 {[%emt 0:00:08]} Be7 {[%emt 0:00:11]} 6. Bd3 {[%emt 0:00:18]} O-O {[%emt 0:00:27]} 7. O-O {[%emt 0:00:10]} a6 {[%emt 0:00:08]} 8. e4 {[%emt 0:06:01]} dxc4 {[%emt 0:02:57]} 9. Bxc4 {[%emt 0:01:43]} b5 {[%emt 0:00:59]} 10. Bd3 {[%emt 0:00:21]} Bb7 {[%emt 0:00:18]} 11. e5 {[%emt 0:03:28]} Nd5 {[%emt 0:00:41]} 12. Nxd5 {[%emt 0:03:25]} Qxd5 {[%emt 0:05:23]} 13. Qc2 {[%emt 0:05:14]} g6 {[%emt 0:00:24]} 14. Be4 {[%emt 0:03:50]} Qd7 {[%emt 0:00:23]} 15. h4 {[%emt 0:19:01]} c5 {[%emt 0:17:33]} 16. dxc5 {[%emt 0:04:39]} Bxe4 {[%emt 0:08:51]} 17. Qxe4 {[%emt 0:00:23]} Nc6 {[%emt 0:00:26]} 18. Bg5 {[%emt 0:08:25]} Rac8 {[%emt 0:03:16]} 19. Rfd1 {[%emt 0:03:01]} Qc7 {[%emt 0:00:31]} 20. b4 {[%emt 0:05:27]} a5 {[%emt 0:08:56]} 21. a3 {[%emt 0:00:19]} Rfd8 {[%emt 0:00:47]} 22. Rd6 {[%emt 0:03:58]} Rd7 {[%emt 0:06:32]} 23. Rad1 {[%emt 0:01:52]} Bxd6 {[%emt 0:01:40]} 24. cxd6 {[%emt 0:04:53]} Qb8 {[%emt 0:02:34]} 25. Bf6 {[%emt 0:00:59]} h6 {[%emt 0:05:02]} 26. Qf4 {[%emt 0:07:55]} Kh7 {[%emt 0:00:26]} 27. Ng5+ {[%emt 0:00:36]} Kg8 {[%emt 0:02:57]} 28. Nxe6 {[%emt 0:02:14]} Kh7 {[%emt 0:05:39]} 29. Nc5 {[%emt 0:00:59]} Ra7 {[%emt 0:00:56]} 30. d7 {[%emt 0:03:04]} Rf8 {[%emt 0:03:58]} 31. h5 {[%emt 0:02:15]} Nd8 {[%emt 0:02:34]} 32. Rd3 {[%emt 0:01:15]} axb4 {[%emt 0:03:23]} 33. hxg6+ {[%emt 0:00:11]} fxg6 {[%emt 0:00:17]} 34. Qxh6+ {[%emt 0:00:04]} 1-0